fUST/lending_fUST_20241018
["ID","MTS","AMOUNT","RATE_DAILY","PERIOD"]
[340398310,1729187432267,-35003.45122982,0.0001448,2]
[340398311,1729187432277,-7139.03849239,0.0001448,2]
[340398312,1729187432286,-768.28,0.00014489,2]
[340398313,1729187432295,-70477.3442953,0.0001449,2]
[340398314,1729187432304,-13258.214343,0.0001449,2]
[340398315,1729187432314,-150.0,0.00014499,2]
[340398316,1729187432325,-527.0,0.00014499,2]
[340398317,1729187432334,-1806.0,0.00014499,2]
[340398318,1729187432343,-1158.0,0.00014499,2]
[340398319,1729187432354,-150.369,0.00014499,2]
[340398320,1729187432364,-162.92453747,0.00014499,2]
[340398321,1729187432373,-150.01,0.00014499,2]
[340398322,1729187432383,-4362.65999806,0.00014499,2]
[340398323,1729187432393,-500.0,0.00014499,2]
[340398324,1729187432402,-235.24217152,0.00014499,2]
[340398325,1729187432411,-297.96898733,0.00014499,2]
[340398326,1729187432420,-500.0,0.00014499,2]
[340398327,1729187432430,-500.0,0.00014499,2]
[340398328,1729187432439,-500.0,0.00014499,2]
[340398329,1729187432449,-500.0,0.00014499,2]
[340398330,1729187432458,-500.0,0.00014499,2]
[340398331,1729187432467,-500.0,0.00014499,2]
[340398332,1729187432476,-500.0,0.00014499,2]
[340398333,1729187432486,-500.0,0.00014499,2]
[340398334,1729187432496,-500.0,0.00014499,2]
[340398335,1729187432505,-500.0,0.00014499,2]
[340398336,1729187432514,-500.0,0.00014499,2]
[340398337,1729187432524,-500.0,0.00014499,2]
[340398338,1729187432533,-500.0,0.00014499,2]
[340398339,1729187432543,-500.0,0.00014499,2]
[340398340,1729187432552,-500.0,0.00014499,2]
[340398341,1729187432561,-500.0,0.00014499,2]
[340398342,1729187432570,-218.85902857,0.00014499,2]
[340398343,1729187432579,-500.0,0.00014499,2]
[340398344,1729187432589,-500.0,0.00014499,2]
[340398345,1729187432598,-500.0,0.00014499,2]
[340398346,1729187432607,-500.0,0.00014499,2]
[340398347,1729187432617,-500.0,0.00014499,2]
[340398348,1729187432627,-500.0,0.00014499,2]
[340398349,1729187432637,-500.0,0.00014499,2]
[340398350,1729187432646,-169069.66863516,0.000145,2]
[340398351,1729187432657,-151.0,0.000145,2]
[340398352,1729187432666,-93842.16767796,0.000145,2]
[340398353,1729187432682,-766.41726329,0.000145,2]
[340398359,1729187439942,-1094.0093523,0.00014373,2]
[340398361,1729187439954,-150.0,0.00014499,2]
[340398363,1729187439966,-229.29713778,0.00014499,2]
[340398364,1729187439975,-3635.54999838,0.00014499,2]
[340398366,1729187439985,-232548.86055531,0.000145,2]
[340398434,1729187443354,-14638.89901448,0.000145,2]
[340398451,1729187446078,-417.31201474,0.000145,2]
[340398452,1729187446089,-1109.21655457,0.000145,2]
[340398453,1729187535519,24900.0,0.00013494,2]
[340398455,1729187805835,187.5,0.0001356,2]
[340398456,1729187806054,187.5,0.00013597,2]
[340398457,1729187806298,187.5,0.00013634,2]
[340398458,1729187806756,187.5,0.00013671,2]
[340398459,1729187806990,187.5,0.00013709,2]
[340398460,1729187807216,187.5,0.00013746,2]
[340398461,1729187807669,187.5,0.00013783,2]
[340398462,1729187807910,187.5,0.0001382,2]
[340398463,1729187808135,187.5,0.00013857,2]
[340398464,1729187809007,187.5,0.00013894,2]
[340398465,1729187809068,187.5,0.00013932,2]
[340398466,1729187809280,187.5,0.00013969,2]
[340398467,1729187809363,187.5,0.00014006,2]
[340398468,1729187845224,250.0,0.00013699,2]
[340398479,1729187893979,175.213189,0.00013699,2]
[340398480,1729187902041,7893.4590404,0.00014013,2]
[340398481,1729187916008,3000.0,0.00013329,2]
[340398482,1729188293528,24900.0,0.00013353,2]
[340398483,1729188332115,1000.0,0.00014,2]
[340398484,1729188332649,1000.0,0.00014,2]
[340398485,1729188333195,1000.0,0.00014,2]
[340398486,1729188333755,1000.0,0.00014,2]
[340398487,1729188337066,1000.0,0.00014,2]
[340398488,1729188337631,1000.0,0.00014,2]
[340398489,1729188338196,1000.0,0.00014,2]
[340398490,1729188339658,1000.0,0.00014,2]
[340398491,1729188340202,1000.0,0.00014,2]
[340398492,1729188340788,1000.0,0.00014,2]
[340398493,1729188341340,1000.0,0.00014,2]
[340398494,1729188341877,666.0,0.00014,2]
[340398496,1729188375628,157.981818,0.00013456,2]
[340398497,1729188375875,157.981818,0.00013526,2]
[340398498,1729188376325,157.981818,0.00013596,2]
[340398499,1729188376563,157.981818,0.00013666,2]
[340398500,1729188376789,157.981818,0.00013736,2]
[340398501,1729188377052,157.981818,0.00013806,2]
[340398502,1729188377269,157.981818,0.00013876,2]
[340398503,1729188377502,157.981818,0.00013946,2]
[340398504,1729188377739,157.981818,0.00014017,2]
[340398505,1729188377990,1000.0,0.00014,2]
[340398506,1729188378559,1000.0,0.00014,2]
[340398507,1729188379646,1000.0,0.00014,2]
[340398508,1729188379791,1000.0,0.00014,2]
[340398509,1729188380347,1000.0,0.00014,2]
[340398510,1729188380879,1000.0,0.00014,2]
[340398511,1729188381423,1000.0,0.00014,2]
[340398512,1729188381967,1000.0,0.00014,2]
[340398513,1729188382504,1000.0,0.00014,2]
[340398514,1729188383041,1000.0,0.00014,2]
[340398515,1729188383606,1000.0,0.00014,2]
[340398516,1729188384139,1000.0,0.00014,2]
[340398517,1729188384667,865.0,0.00014,2]
[340398521,1729188456938,250.0,0.00013699,2]
[340398522,1729188469708,191.795119,0.00013699,2]
[340398523,1729188491602,1504.1186484,0.0001339,2]
[340398561,1729188633812,150.0,0.00013983,2]
[340398572,1729188638611,-157.981818,0.00014087,2]
[340398573,1729188638622,-157.981818,0.00014157,2]
[340398574,1729188638632,-7893.4590405,0.000142,2]
[340398575,1729188638643,-984.60841707,0.00014373,2]
[340398576,1729188638655,-502.83684358,0.0001438,2]
[340398577,1729188638664,-191.795119,0.00014384,2]
[340398578,1729188638673,-300.0,0.00014394,2]
[340398579,1729188638682,-300.0,0.00014395,2]
[340398580,1729188638694,-174.24697246,0.00014396,2]
[340398581,1729188638704,-2335.27952167,0.00014396,2]
[340398582,1729188638714,-174.24697242,0.00014397,2]
[340398583,1729188638723,-174.24697242,0.00014398,2]
[340398584,1729188638733,-174.24697242,0.00014399,2]
[340398585,1729188638744,-600.0,0.000144,2]
[340398586,1729188638754,-174.24697242,0.000144,2]
[340398587,1729188638763,-435.27381396,0.000144,2]
[340398588,1729188638773,-150.0,0.0001447,2]
[340398589,1729188638783,-2454.63660497,0.00014471,2]
[340398597,1729188641558,-4821.51389511,0.00014471,2]
[340398598,1729188641568,-500.0,0.00014473,2]
[340398599,1729188641580,-500.0,0.00014473,2]
[340398600,1729188641594,-185.847,0.00014473,2]
[340398601,1729188641603,-736.27,0.00014495,2]
[340398602,1729188641614,-1015.91643988,0.00014496,2]
[340398603,1729188641623,-137232.0277053,0.00014496,2]
[340398604,1729188641632,-151.0,0.00014496,2]
[340398605,1729188641641,-207.436076,0.00014496,2]
[340398606,1729188641652,-151.0,0.00014496,2]
[340398607,1729188641662,-207.436076,0.00014496,2]
[340398608,1729188641672,-151.0,0.00014496,2]
[340398609,1729188641681,-151.0,0.00014496,2]
[340398610,1729188641690,-279.288436,0.00014496,2]
[340398611,1729188641699,-279.288436,0.00014496,2]
[340398612,1729188641708,-184.696716,0.00014496,2]
[340398613,1729188641718,-184.696716,0.00014496,2]
[340398614,1729188641727,-2367.24082,0.00014496,2]
[340398615,1729188641736,-2367.24082,0.00014496,2]
[340398616,1729188641746,-151.0,0.00014496,2]
[340398617,1729188641754,-151.0,0.00014496,2]
[340398618,1729188641764,-549.23012,0.00014496,2]
[340398619,1729188641773,-549.23012,0.00014496,2]
[340398620,1729188641782,-1249.420569,0.00014496,2]
[340398621,1729188641791,-1249.420569,0.00014496,2]
[340398622,1729188641800,-2675.882612,0.00014496,2]
[340398623,1729188641809,-2675.882612,0.00014496,2]
[340398624,1729188641818,-151.0,0.00014496,2]
[340398625,1729188641827,-209.320604,0.00014496,2]
[340398626,1729188641841,-209.320604,0.00014496,2]
[340398627,1729188641849,-1073.615621,0.00014496,2]
[340398628,1729188641858,-1073.615621,0.00014496,2]
[340398629,1729188641868,-810.20626,0.00014496,2]
[340398630,1729188641878,-810.20626,0.00014496,2]
[340398631,1729188641887,-287.750536,0.00014496,2]
[340398632,1729188641898,-1181.186512,0.00014496,2]
[340398633,1729188641908,-1181.186512,0.00014496,2]
[340398634,1729188641917,-2828.107122,0.00014496,2]
[340398635,1729188641926,-287.750536,0.00014496,2]
[340398636,1729188641935,-2828.107122,0.00014496,2]
[340398637,1729188641944,-706.183349,0.00014496,2]
[340398638,1729188641954,-706.183349,0.00014496,2]
[340398639,1729188641963,-799.002662,0.00014496,2]
[340398640,1729188641973,-799.002662,0.00014496,2]
[340398641,1729188641982,-525.841752,0.00014496,2]
[340398642,1729188641991,-525.841752,0.00014496,2]
[340398643,1729188642001,-151.0,0.00014496,2]
[340398644,1729188642010,-151.0,0.00014496,2]
[340398645,1729188642019,-180.409071,0.00014496,2]
[340398646,1729188642029,-180.409071,0.00014496,2]
[340398647,1729188642040,-150.719,0.00014499,2]
[340398648,1729188642049,-150.0,0.00014499,2]
[340398649,1729188642058,-521.0,0.00014499,2]
[340398650,1729188642068,-1158.0,0.00014499,2]
[340398651,1729188642078,-1806.0,0.00014499,2]
[340398652,1729188642089,-229.29713778,0.00014499,2]
[340398653,1729188642099,-3635.54999838,0.00014499,2]
[340398654,1729188642108,-500.0,0.00014499,2]
[340398655,1729188642118,-500.0,0.00014499,2]
[340398656,1729188642128,-500.0,0.00014499,2]
[340398657,1729188642138,-500.0,0.00014499,2]
[340398658,1729188642148,-500.0,0.00014499,2]
[340398659,1729188642157,-500.0,0.00014499,2]
[340398660,1729188642166,-500.0,0.00014499,2]
[340398661,1729188642175,-489.15381261,0.00014499,2]
[340398662,1729188642185,-500.0,0.00014499,2]
[340398663,1729188642194,-500.0,0.00014499,2]
[340398664,1729188642203,-500.0,0.00014499,2]
[340398665,1729188642213,-500.0,0.00014499,2]
[340398666,1729188642222,-500.0,0.00014499,2]
[340398667,1729188642231,-500.0,0.00014499,2]
[340398668,1729188642240,-500.0,0.00014499,2]
[340398669,1729188642249,-500.0,0.00014499,2]
[340398670,1729188642258,-270.30565635,0.00014499,2]
[340398671,1729188642267,-500.0,0.00014499,2]
[340398672,1729188642277,-500.0,0.00014499,2]
[340398673,1729188642286,-500.0,0.00014499,2]
[340398674,1729188642295,-500.0,0.00014499,2]
[340398675,1729188642304,-500.0,0.00014499,2]
[340398676,1729188642314,-45159.53840831,0.000145,2]
[340398677,1729188642323,-39546.02202564,0.000145,2]
[340398710,1729188646230,-151.0,0.00014496,2]
[340398711,1729188646240,-151.0,0.00014496,2]
[340398712,1729188646249,-3029.62499865,0.00014499,2]
[340398713,1729188646259,-610.14175701,0.000145,2]
[340398714,1729188646271,-1356.5099045,0.000145,2]
[340398715,1729188646282,-2162.53910812,0.000145,2]
[340398716,1729188646294,-2135.67124547,0.000145,2]
[340398717,1729188646326,-7856.29275404,0.000145,2]
[340398721,1729188816248,24900.0,0.00013506,2]
[340398745,1729188893032,164.044285,0.00013543,2]
[340398746,1729188893082,164.044285,0.00013597,2]
[340398747,1729188893204,164.044285,0.00013651,2]
[340398748,1729188893430,164.044285,0.00013705,2]
[340398749,1729188893693,164.044285,0.0001376,2]
[340398750,1729188893936,164.044285,0.00013814,2]
[340398751,1729188894168,164.044285,0.00013868,2]
[340398752,1729188894411,164.044285,0.00013923,2]
[340398753,1729188894651,164.044285,0.00013977,2]
[340398755,1729188975409,250.0,0.00013699,2]
[340398756,1729189057094,757.993397,0.00013699,2]
[340398757,1729189136144,7893.45904,0.00013979,2]
[340398758,1729189391852,167.719016,0.00013519,2]
[340398759,1729189392241,167.719016,0.00013583,2]
[340398760,1729189392460,167.719016,0.00013647,2]
[340398761,1729189392645,167.719016,0.00013711,2]
[340398762,1729189392894,167.719016,0.00013775,2]
[340398763,1729189393363,167.719016,0.00013839,2]
[340398764,1729189393426,167.719016,0.00013903,2]
[340398765,1729189393681,167.719016,0.00013967,2]
[340398767,1729189445678,24900.0,0.0001342,2]
[340398772,1729189536020,250.0,0.00013699,2]
[340398774,1729189623679,968.036725,0.00013699,2]
[340398779,1729189703611,925.7794773,0.00014,2]
[340398837,1729189832448,-167.719016,0.00014031,2]
[340398839,1729189832458,-167.719016,0.00014095,2]
[340398841,1729189832468,-167.719016,0.00014159,2]
[340398843,1729189832478,-167.719016,0.00014223,2]
[340398845,1729189832488,-471.36098932,0.00014285,2]
[340398847,1729189832498,-321.98497275,0.00014384,2]
[340398878,1729189838558,-646.05175225,0.00014384,2]
[340398879,1729189838568,-886.14757539,0.00014389,2]
[340398880,1729189838579,-3124.32230928,0.00014396,2]
[340398881,1729189838590,-600.0,0.000144,2]
[340398882,1729189838601,-364.79438019,0.000144,2]
[340398883,1729189838611,-870.54762794,0.000144,2]
[340398884,1729189838621,-364.79438015,0.00014425,2]
[340398885,1729189838631,-300.0,0.00014431,2]
[340398886,1729189838642,-300.0,0.00014432,2]
[340398887,1729189838652,-150.0,0.00014433,2]
[340398888,1729189838663,-150.0,0.00014433,2]
[340398889,1729189838675,-364.79438015,0.00014449,2]
[340398890,1729189838685,-1000.0,0.00014469,2]
[340398891,1729189838696,-364.79438015,0.00014474,2]
[340398892,1729189838706,-5017.5039094,0.00014482,2]
[340398893,1729189838716,-705.59,0.00014489,2]
[340398894,1729189838726,-2685.97420637,0.0001449,2]
[340398895,1729189838750,-674.80666933,0.0001449,2]
[340398896,1729189838797,-325.43812925,0.0001449,2]
[340398897,1729189838807,-11139.1136723,0.0001449,2]
[340398898,1729189838817,-677.27762659,0.0001449,2]
[340398899,1729189838827,-150.0,0.00014492,2]
[340398900,1729189838836,-1806.0,0.00014492,2]
[340398901,1729189838846,-155.584423,0.00014496,2]
[340398902,1729189838856,-155.584423,0.00014496,2]
[340398903,1729189838866,-364.79438015,0.00014498,2]
[340398904,1729189838875,-2524.68749888,0.00014499,2]
[340398905,1729189838885,-185.848,0.00014499,2]
[340398906,1729189838895,-194.73133744,0.00014499,2]
[340398907,1729189838905,-500.0,0.00014499,2]
[340398908,1729189838915,-165.46153473,0.00014499,2]
[340398909,1729189838927,-530.03396182,0.00014499,2]
[340398910,1729189838936,-151.0,0.000145,2]
[340398911,1729189838946,-151.0,0.000145,2]
[340398912,1729189838956,-151.0,0.000145,2]
[340398913,1729189838967,-207.436076,0.000145,2]
[340398914,1729189838976,-207.436076,0.000145,2]
[340398915,1729189838986,-151.0,0.000145,2]
[340398916,1729189838996,-151.0,0.000145,2]
[340398917,1729189839006,-151.0,0.000145,2]
[340398918,1729189839015,-151.0,0.000145,2]
[340398919,1729189839025,-151.0,0.000145,2]
[340398920,1729189839035,-190.429484,0.000145,2]
[340398921,1729189839045,-180.409071,0.000145,2]
[340398922,1729189839055,-180.409071,0.000145,2]
[340398923,1729189839064,-151.0,0.000145,2]
[340398924,1729189839074,-151.0,0.000145,2]
[340398925,1729189839083,-151.0,0.000145,2]
[340398926,1729189839093,-151.0,0.000145,2]
[340398927,1729189839103,-151.0,0.000145,2]
[340398928,1729189839112,-220.336096,0.000145,2]
[340398929,1729189839122,-155.584423,0.000145,2]
[340398930,1729189839132,-155.584423,0.000145,2]
[340398931,1729189839142,-350.0,0.000145,2]
[340398932,1729189839151,-155.584423,0.000145,2]
[340398933,1729189839161,-155.584423,0.000145,2]
[340398934,1729189839173,-151.0,0.000145,2]
[340398935,1729189839183,-151.0,0.000145,2]
[340398936,1729189839192,-643.365969,0.000145,2]
[340398937,1729189839202,-643.365969,0.000145,2]
[340398938,1729189839212,-643.365969,0.000145,2]
[340398939,1729189839226,-643.365969,0.000145,2]
[340398940,1729189839236,-151.0,0.000145,2]
[340398941,1729189839246,-151.0,0.000145,2]
[340398942,1729189839255,-484.64210979,0.000145,2]
[340398943,1729189839265,-151.0,0.000145,2]
[340398944,1729189839276,-426.8443632,0.000145,2]
[340398945,1729189839286,-414.4932585,0.000145,2]
[340398946,1729189839295,-151.0,0.000145,2]
[340398947,1729189839306,-412.153178,0.000145,2]
[340398948,1729189839316,-412.153178,0.000145,2]
[340398949,1729189839326,-150.0,0.000145,2]
[340398950,1729189839336,-151.0,0.000145,2]
[340398951,1729189839345,-241.049514,0.000145,2]
[340398952,1729189839355,-414.4932585,0.000145,2]
[340398953,1729189839365,-556.371826,0.000145,2]
[340398954,1729189839376,-556.371826,0.000145,2]
[340398955,1729189839386,-420.9034874,0.000145,2]
[340398956,1729189839396,-420.8332686,0.000145,2]
[340398957,1729189839407,-414.3746803,0.000145,2]
[340398958,1729189839419,-414.4932585,0.000145,2]
[340398959,1729189839429,-414.4932585,0.000145,2]
[340398960,1729189839440,-222.0,0.000145,2]
[340398961,1729189839451,-153.0,0.000145,2]
[340398962,1729189839461,-385.4912291,0.000145,2]
[340398963,1729189839472,-153.0,0.000145,2]
[340398964,1729189839481,-153.0,0.000145,2]
[340398965,1729189839491,-306.0,0.000145,2]
[340398966,1729189839500,-484.10596244,0.000145,2]
[340398967,1729189839510,-153.0,0.000145,2]
[340398968,1729189839520,-268.8751593,0.000145,2]
[340398969,1729189839530,-110917.08400415,0.000145,2]
[340399001,1729189843568,-1139.007,0.00014492,2]
[340399003,1729189843579,-3605.103,0.000145,2]
[340399004,1729189843596,-622.12000005,0.000145,2]
[340399005,1729189843703,-291.2784889,0.000145,2]
[340399006,1729189843715,-767.50000001,0.000145,2]
[340399007,1729189843727,-10969.59367052,0.000145,2]
[340399008,1729189843738,-1808.77320239,0.000145,2]
[340399009,1729189843749,-725.96988784,0.000145,2]
[340399025,1729189846597,-2350.24770534,0.000145,2]
[340399026,1729189846622,-76573.33852997,0.000145,2]
[340399027,1729189846636,-453.0,0.000145,2]
[340399029,1729189953491,158.987567,0.00013613,2]
[340399030,1729189953574,158.987567,0.0001379,2]
[340399031,1729189953796,158.987567,0.00013968,2]
[340399033,1729190031530,250.0,0.00013699,2]
[340399034,1729190051196,6005.3495372,0.00013424,2]
[340399035,1729190107390,160.242105,0.00012753,2]
[340399036,1729190159129,939.622634,0.00013699,2]
[340399037,1729190198732,187.0,0.00024658,120]
[340399038,1729190223857,69.866086,0.000243,120]
[340399039,1729190248490,187.133914,0.00023836,120]
[340399041,1729190276630,967.0,0.000203,120]
[340399044,1729190389729,7278.51758589,0.00014028,2]
[340399045,1729190469897,165.333094,0.00013541,2]
[340399046,1729190470175,165.333094,0.00013619,2]
[340399047,1729190470437,165.333094,0.00013698,2]
[340399048,1729190470868,165.333094,0.00013776,2]
[340399049,1729190471126,165.333094,0.00013854,2]
[340399050,1729190471352,165.333094,0.00013933,2]
[340399051,1729190471620,165.333094,0.00014011,2]
[340399057,1729190602217,250.0,0.00013699,2]
[340399060,1729190707497,832.062997,0.00013699,2]
[340399062,1729190753430,150.0,0.00013979,2]
[340399092,1729191032707,-165.333094,0.0001409,2]
[340399093,1729191032717,-165.333094,0.00014168,2]
[340399094,1729191032726,-2767.72277322,0.00014174,2]
[340399095,1729191032738,-1208.03271889,0.00014174,2]
[340399096,1729191032769,-781.79114636,0.00014174,2]
[340399097,1729191032795,-3638.03356978,0.00014174,2]
[340399098,1729191035221,6213.6890001,0.00013699,2]
[340399112,1729191038747,-489.73564415,0.00014174,2]
[340399114,1729191038757,-165.333094,0.00014246,2]
[340399116,1729191038766,-3650.04677284,0.00014382,2]
[340399118,1729191038776,-300.0,0.00014383,2]
[340399120,1729191038785,-300.0,0.00014383,2]
[340399122,1729191038797,-832.062997,0.00014384,2]
[340399124,1729191038807,-797.53281777,0.0001439,2]
[340399125,1729191038816,-600.0,0.000144,2]
[340399127,1729191038825,-2733.78202062,0.000144,2]
[340399129,1729191038835,-5065.31120438,0.00014472,2]
[340399133,1729191038867,-600.19128967,0.00014472,2]
[340399145,1729191038972,-2628.94516183,0.00014472,2]
[340399147,1729191038982,-552.93285074,0.0001449,2]
[340399149,1729191038992,-1670.86705083,0.0001449,2]
[340399151,1729191039002,-480.011,0.00014492,2]
[340399152,1729191039011,-150.0,0.00014492,2]
[340399153,1729191039020,-451.51841773,0.00014499,2]
[340399154,1729191039029,-2103.90624906,0.00014499,2]
[340399155,1729191039040,-23677.57788574,0.000145,2]
[340399300,1729191040636,-13396.29920036,0.000145,2]
[340399750,1729191045598,166.666666,0.00013672,2]
[340399780,1729191045899,166.666666,0.00013736,2]
[340399808,1729191046135,166.666666,0.00013801,2]
[340399836,1729191046389,166.666666,0.00013866,2]
[340399856,1729191046723,166.666666,0.00013931,2]
[340399858,1729191046736,-150.0,0.00014492,2]
[340399860,1729191046745,-33290.0,0.000145,2]
[340399899,1729191047107,166.666666,0.00013996,2]
[340400156,1729191104617,250.0,0.00013699,2]
[340400158,1729191235390,445.024561,0.00013699,2]
[340400159,1729191271239,50000.0,0.00013,2]
[340400160,1729191284744,-166.666666,0.0001406,2]
[340400161,1729191284768,-166.666666,0.00014125,2]
[340400162,1729191284792,-166.666666,0.0001419,2]
[340400163,1729191284815,-166.666666,0.00014255,2]
[340400164,1729191284837,-166.666666,0.00014319,2]
[340400165,1729191284860,-445.024561,0.00014384,2]
[340400166,1729191284884,-166.666666,0.00014384,2]
[340400167,1729191284909,-2392.05926806,0.00014495,2]
[340400168,1729191284931,-1753.25520755,0.00014499,2]
[340400169,1729191284954,-300.0,0.00014499,2]
[340400170,1729191284976,-300.0,0.00014499,2]
[340400171,1729191284999,-676.19,0.00014499,2]
[340400172,1729191285021,-3009.38796261,0.000145,2]
[340400173,1729191285043,-185.848,0.000145,2]
[340400174,1729191285066,-219.0,0.000145,2]
[340400175,1729191285088,-210.4868531,0.000145,2]
[340400176,1729191285111,-153.0,0.000145,2]
[340400177,1729191285134,-210.4868531,0.000145,2]
[340400178,1729191285157,-414.4932585,0.000145,2]
[340400179,1729191285179,-153.0,0.000145,2]
[340400180,1729191285201,-414.4932585,0.000145,2]
[340400181,1729191285223,-210.4868531,0.000145,2]
[340400182,1729191285486,-364.7526321,0.000145,2]
[340400183,1729191285511,-153.0,0.000145,2]
[340400184,1729191285533,-150.0,0.000145,2]
[340400185,1729191285556,-792.3977206,0.000145,2]
[340400186,1729191285580,-301.9500594,0.000145,2]
[340400187,1729191285602,-308.8244125,0.00014507,2]
[340400188,1729191285625,-153.0,0.00014507,2]
[340400189,1729191285651,-802.95675558,0.00014518,2]
[340400190,1729191285675,-341.45,0.00014529,2]
[340400191,1729191285698,-873.07670088,0.0001455,2]
[340400192,1729191285721,-151.0,0.00014569,2]
[340400193,1729191285744,-151.0,0.00014569,2]
[340400194,1729191285768,-151.0,0.00014569,2]
[340400195,1729191285791,-151.0,0.00014569,2]
[340400196,1729191285814,-151.0,0.00014569,2]
[340400197,1729191285837,-151.0,0.00014569,2]
[340400198,1729191285861,-500.0,0.00014579,2]
[340400199,1729191285884,-151.0,0.00014579,2]
[340400200,1729191285911,-153.0,0.00014595,2]
[340400201,1729191285934,-306.0,0.00014595,2]
[340400202,1729191285959,-153.0,0.00014595,2]
[340400203,1729191285985,-153.0,0.00014595,2]
[340400204,1729191286011,-31720.69159455,0.00014598,2]
[340400205,1729191286033,-10093.07889995,0.00014598,2]
[340400206,1729191286058,-50365.8397677,0.00014598,2]
[340400207,1729191286083,-424.5454546,0.00014598,2]
[340400208,1729191286109,-251829.198839,0.00014598,2]
[340400209,1729191286134,-151.0,0.00014598,2]
[340400210,1729191286160,-151.0,0.00014598,2]
[340400211,1729191286183,-151.0,0.00014598,2]
[340400212,1729191286206,-151.0,0.00014598,2]
[340400213,1729191286230,-2545.29641,0.00014598,2]
[340400214,1729191286253,-2545.29641,0.00014598,2]
[340400215,1729191286277,-151.0,0.00014598,2]
[340400216,1729191286300,-1063.06786,0.00014598,2]
[340400217,1729191286323,-473.257577,0.00014598,2]
[340400218,1729191286346,-473.257577,0.00014598,2]
[340400219,1729191286369,-719.102396,0.00014598,2]
[340400220,1729191286393,-719.102396,0.00014598,2]
[340400221,1729191286420,-430.635949,0.00014598,2]
[340400222,1729191286443,-430.635949,0.00014598,2]
[340400223,1729191286468,-2280.97351,0.00014598,2]
[340400224,1729191286491,-2280.97351,0.00014598,2]
[340400225,1729191286513,-151.0,0.00014598,2]
[340400226,1729191286538,-151.0,0.00014598,2]
[340400227,1729191286562,-150.112233,0.000146,2]
[340400228,1729191286585,-150.112233,0.000146,2]
[340400229,1729191286609,-150.112233,0.000146,2]
[340400230,1729191286631,-150.112233,0.000146,2]
[340400231,1729191286657,-150.112233,0.000146,2]
[340400232,1729191286681,-150.112233,0.000146,2]
[340400233,1729191286704,-150.112233,0.000146,2]
[340400234,1729191286728,-150.112233,0.000146,2]
[340400235,1729191286752,-150.112233,0.000146,2]
[340400236,1729191286775,-150.112233,0.000146,2]
[340400237,1729191286796,-500.0,0.00014607,2]
[340400238,1729191286819,-338.08630779,0.00014607,2]
[340400239,1729191286841,-500.0,0.00014607,2]
[340400240,1729191286864,-213.99769992,0.00014607,2]
[340400241,1729191286886,-487.92971688,0.00014607,2]
[340400242,1729191286912,-500.0,0.00014607,2]
[340400243,1729191286935,-406.83550115,0.00014607,2]
[340400244,1729191286958,-151.0,0.00014608,2]
[340400245,1729191286981,-151.0,0.00014608,2]
[340400246,1729191287004,-151.0,0.00014608,2]
[340400247,1729191287027,-188.167722,0.00014608,2]
[340400248,1729191287049,-151.0,0.00014608,2]
[340400249,1729191287072,-151.0,0.00014608,2]